Workbook

Sheet Main
I3: FALSE | L3: ECB Simulation Parameters
L4: Tau(reserve rate)
L5: 0.09
M6: t+1 | N6: t+2 | O6: t+3 | P6: t+4
L7: Sovereign Debt (Ml€) | M7: 200000 | N7: 500000 | O7: 500000 | P7: 500000
L8: LTRO
M12: t+1 | N12: t+2 | O12: t+3 | P12: t+4
L13: Rho Loans | M13: =Data!H23 -> 0.04275398115 | N13: =Data!I23 -> 0.04574486851 | O13: =Data!J23 -> 0.04660635978 | P13: =Data!K23 -> 0.04533154176
L14: Rho Liquidity | M14: =Data!H31 -> 0.04273835136 | N14: =Data!I31 -> 0.04569030838 | O14: =Data!J31 -> 0.04651307524 | P14: =Data!K31 -> 0.04519973871
L15: Invest Rate | M15: =Data!H15 -> 0.03141179569 | N15: =Data!I15 -> 0.03363269025 | O15: =Data!J15 -> 0.03425169602 | P15: =Data!K15 -> 0.03326361187
L18: Shocks Parameters
K20: Steps | L20: 100 | N20: 100 | P20: 100
K21: Std Dev | L21: 0.0085 | N21: 0.008 | P21: 0.08
K22: Initial Shock | L22: 0.12
L30: 1

Sheet Aggregated_Balance_Sheets
B2: CREDIT INSTITUTIONS BALANCE SHEETS (EUR AREA) | G2: NETTING : Interbank operations, fixed assets and remaining assets
B4: t | C4: 2013-07-01 | H4: (Ml) | L4: Cells to be changed
B5: ACTIF | D5: PASSIF | G5: ACTIF | I5: PASSIF | L5: After netting
B6: Fixed Assets | C6: 210389.434 | D6: Capital and reserves | E6: 2392677.429 | G6: Fixed Assets | H6: =C6 -> 210389.434 | I6: Capital and reserves | J6: =C6 -> 210389.434
B7: Shares and other equities - non MFI | C7: 776110.284 | G7: Shares and other equities - non MFI | H7: =C7 -> 776110.284 | I7: Capital and reserves | J7: =E6-C6 -> 2182287.995
B8: Securities other than shares - General gvt | C8: 1685913.952 | G8: MMF shares/units | H8: =C10 -> 16814.255 | I8: Debt security issued - non MFI | J8: =E16-J16 -> 2950966.779
B9: Securities other than shares - non MFI | C9: 1330970.861 | G9: Securities other than shares - General gvt | H9: =C8 -> 1685913.952
B10: MMF shares/units | C10: 16814.255 | G10: Securities other than shares - non MFI | H10: =C9 -> 1330970.861
B11: Loans - General gvt | C11: 1090391.213 | D11: Deposit Liabilities - General gvt | E11: 190878.565 | G11: External Assets | H11: =C13 -> 3553756.298 | I11: External Liabilities | J11: =E13 -> 2907144.25
B12: Loans - non MFI | C12: 10779076.83 | D12: Deposit Liabilities - non MFI | E12: 10929478.02 | G12: Loans - General gvt | H12: =C11 -> 1090391.213 | I12: Deposit Liabilities - General gvt | J12: =E11 -> 190878.565
B13: External Assets | C13: 3553756.298 | D13: External Liabilities | E13: 2907144.25 | G13: Loans - non MFI | H13: =C12 -> 10779076.83 | I13: Deposit Liabilities - non MFI | J13: =E12 -> 10929478.02
B14: Remaining Assets and Cash of which euro | C14: 3837488.95 | D14: Remaining Liabilities | E14: 3909524.637 | G14: Remaining Assets and Cash of which euro | H14: 0 | I14: Remaining Liabilities | J14: =E14-J18 -> 72035.687
B15: Loans - MFI | C15: 5358614.409 | D15: Deposit Liabilities - MFI | E15: 5728862.638 | G15: Loans - MFI | H15: =C15 -> 5358614.409 | I15: Deposit Liabilities - MFI | J15: =E15 -> 5728862.638
B16: Securities other than shares - MFI | C16: 1433443.304 | D16: Debt security issued | E16: 4470481.288 | G16: Securities other than shares - MFI | H16: =C16 -> 1433443.304 | I16: Debt security issued - MFI | J16: =SUM(H15:H17)-J15 -> 1519514.509
B17: Shares and other equities - MFI | C17: 456319.434 | G17: Shares and other equities - MFI | H17: =C17 -> 456319.434
B18: Total | C18: =SUM(C6:C17) -> 30529289.22 | D18: Total | E18: =SUM(E6:E17) -> 30529046.82 | G18: Remaining Assets and Cash of which euro | H18: =C14 -> 3837488.95 | I18: Remaining Liabilities | J18: =H18 -> 3837488.95
G19: Total | H19: =SUM(H6:H18) -> 30529289.22 | I19: Total | J19: =SUM(J6:J18) -> 30529046.82
B20: t-1 | C20: 2013-04-01
B21: ACTIF | D21: PASSIF | G21: ACTIF | I21: PASSIF
B22: Fixed Assets | C22: 209468.598 | D22: Capitaux propres et réserves | E22: 2391803.227 | G22: Fixed Assets | H22: =C22 -> 209468.598 | I22: Capital and reserves | J22: =C22 -> 209468.598
B23: Shares and other equities - non MFI | C23: 776721.623 | G23: Shares and other equities - non MFI | H23: =C23 -> 776721.623 | I23: Capital and reserves | J23: =E22-C22 -> 2182334.629
B24: Securities other than shares - General gvt | C24: 1727998.51 | G24: MMF shares/units | H24: =C26 -> 13426.116 | I24: Debt security issued - non MFI | J24: =E32-J32 -> 3022455.425
B25: Securities other than shares - non MFI | C25: 1350544.88 | G25: Securities other than shares - General gvt | H25: =C24 -> 1727998.51
B26: MMF shares/units | C26: 13426.116 | G26: Securities other than shares - non MFI | H26: =C25 -> 1350544.88
B27: Loans - General gvt | C27: 1101782.487 | D27: Dépôts - Gouvernement général | E27: 235590.752 | G27: External Assets | H27: =C29 -> 3667096.598 | I27: External Liabilities | J27: =E29 -> 3043550.434
B28: Loans - non MFI | C28: 10977320.21 | D28: Dépôts - non MFI | E28: 11084987.39 | G28: Loans - General gvt | H28: =C27 -> 1101782.487 | I28: Deposit Liabilities - General gvt | J28: =E27 -> 235590.752
B29: External Assets | C29: 3667096.598 | D29: Passifs externes | E29: 3043550.434 | G29: Loans - non MFI | H29: =C28 -> 10977320.21 | I29: Deposit Liabilities - non MFI | J29: =E28 -> 11084987.39
B30: Remaining Assets and Cash of which euro | C30: 4002006.598 | D30: Passifs restants | E30: 4047894.235 | G30: Remaining Assets and Cash of which euro | H30: 0 | I30: Remaining Liabilities | J30: =E30-J34 -> 45887.637
B31: Loans - MFI | C31: 5372300.637 | D31: Dépôts - MFI | E31: 5747617.754 | G31: Loans - MFI | H31: =C31 -> 5372300.637 | I31: Deposit Liabilities - MFI | J31: =E31 -> 5747617.754
B32: Securities other than shares - MFI | C32: 1474543.006 | D32: Dette émise | E32: 4590578.314 | G32: Securities other than shares - MFI | H32: =C32 -> 1474543.006 | I32: Debt security issued - MFI | J32: =SUM(H31:H33)-J31 -> 1568122.889
B33: Shares and other equities - MFI | C33: 468897 | G33: Shares and other equities - MFI | H33: =C33 -> 468897
B34: Total | C34: =SUM(C22:C33) -> 31142106.26 | D34: Total | E34: =SUM(E22:E33) -> 31142022.11 | G34: Remaining Assets and Cash of which euro | H34: =C30 -> 4002006.598 | I34: Remaining Liabilities | J34: =H34 -> 4002006.598
G35: Total | H35: =SUM(H22:H34) -> 31142106.26 | I35: Total | J35: =SUM(J22:J34) -> 31142022.11
B36: t-2 | C36: 2013-01-01
B37: ACTIF | D37: PASSIF | G37: ACTIF | I37: PASSIF
B38: Fixed Assets | C38: 210058.637 | D38: Capitaux propres et réserves | E38: 2348048.755 | G38: Fixed Assets | H38: =C38 -> 210058.637 | I38: Capital and reserves | J38: =C38 -> 210058.637
B39: Shares and other equities - non MFI | C39: 768739.339 | G39: Shares and other equities - non MFI | H39: =C39 -> 768739.339 | I39: Capital and reserves | J39: =E38-C38 -> 2137990.118
B40: Securities other than shares - General gvt | C40: 1648503.191 | G40: MMF shares/units | H40: =C42 -> 15378.094 | I40: Debt security issued - non MFI | J40: =E48-J48 -> 3120598.361
B41: Securities other than shares - non MFI | C41: 1345057.78 | G41: Securities other than shares - General gvt | H41: =C40 -> 1648503.191
B42: MMF shares/units | C42: 15378.094 | G42: Securities other than shares - non MFI | H42: =C41 -> 1345057.78
B43: Loans - General gvt | C43: 1124260.942 | D43: Dépôts - Gouvernement général | E43: 207825.899 | G43: External Assets | H43: =C45 -> 3703725.183 | I43: External Liabilities | J43: =E45 -> 3143574.467
B44: Loans - non MFI | C44: 11041822.93 | D44: Dépôts - non MFI | E44: 11016581.55 | G44: Loans - General gvt | H44: =C43 -> 1124260.942 | I44: Deposit Liabilities - General gvt | J44: =E43 -> 207825.899
B45: External Assets | C45: 3703725.183 | D45: Passifs externes | E45: 3143574.467 | G45: Loans - non MFI | H45: =C44 -> 11041822.93 | I45: Deposit Liabilities - non MFI | J45: =E44 -> 11016581.55
B46: Remaining Assets and Cash of which euro | C46: 4475201.019 | D46: Passifs restants | E46: 4496116.605 | G46: Remaining Assets and Cash of which euro | H46: 0 | I46: Remaining Liabilities | J46: =E46-J50 -> 20915.586
B47: Loans - MFI | C47: 5525890.26 | D47: Dépôts - MFI | E47: 5886208.482 | G47: Loans - MFI | H47: =C47 -> 5525890.26 | I47: Deposit Liabilities - MFI | J47: =E47 -> 5886208.482
B48: Securities other than shares - MFI | C48: 1507833.154 | D48: Dette émise | E48: 4732915.328 | G48: Securities other than shares - MFI | H48: =C48 -> 1507833.154 | I48: Debt security issued - MFI | J48: =SUM(H47:H49)-J47 -> 1612316.967
B49: Shares and other equities - MFI | C49: 464802.035 | G49: Shares and other equities - MFI | H49: =C49 -> 464802.035
B50: Total | C50: =SUM(C38:C49) -> 31831272.57 | D50: Total | E50: =SUM(E38:E49) -> 31831271.09 | G50: Remaining Assets and Cash of which euro | H50: =C46 -> 4475201.019 | I50: Remaining Liabilities | J50: =H50 -> 4475201.019
G51: Total | H51: =SUM(H38:H50) -> 31831272.56 | I51: Total | J51: =SUM(J38:J50) -> 31831271.09
B52: t-3 | C52: 2012-10-01
B53: ACTIF | D53: PASSIF | G53: ACTIF | I53: PASSIF
B54: Fixed Assets | C54: 214612.2 | D54: Capitaux propres et réserves | E54: 2343900.172 | G54: Fixed Assets | H54: =C54 -> 214612.2 | I54: Capital and reserves | J54: =C54 -> 214612.2
B55: Shares and other equities - non MFI | C55: 751568.958 | G55: Shares and other equities - non MFI | H55: =C55 -> 751568.958 | I55: Capital and reserves | J55: =E54-C54 -> 2129287.972
B56: Securities other than shares - General gvt | C56: 1575624.23 | G56: MMF shares/units | H56: =C58 -> 16291.091 | I56: Debt security issued - non MFI | J56: =E64-J64 -> 3263923.651
B57: Securities other than shares - non MFI | C57: 1367464.483 | G57: Securities other than shares - General gvt | H57: =C56 -> 1575624.23
B58: MMF shares/units | C58: 16291.091 | G58: Securities other than shares - non MFI | H58: =C57 -> 1367464.483
B59: Loans - General gvt | C59: 1153384.205 | D59: Dépôts - Gouvernement général | E59: 169657.031 | G59: External Assets | H59: =C61 -> 3669219.002 | I59: External Liabilities | J59: =E61 -> 3116583.771
B60: Loans - non MFI | C60: 11040968.53 | D60: Dépôts - non MFI | E60: 10869061.32 | G60: Loans - General gvt | H60: =C59 -> 1153384.205 | I60: Deposit Liabilities - General gvt | J60: =E59 -> 169657.031
B61: External Assets | C61: 3669219.002 | D61: Passifs externes | E61: 3116583.771 | G61: Loans - non MFI | H61: =C60 -> 11040968.53 | I61: Deposit Liabilities - non MFI | J61: =E60 -> 10869061.32
B62: Remaining Assets and Cash of which euro | C62: 4241998.426 | D62: Passifs restants | E62: 4268016.272 | G62: Remaining Assets and Cash of which euro | H62: 0 | I62: Remaining Liabilities | J62: =E62-J66 -> 26017.846
B63: Loans - MFI | C63: 5718484.758 | D63: Dépôts - MFI | E63: 6158095.763 | G63: Loans - MFI | H63: =C63 -> 5718484.758 | I63: Deposit Liabilities - MFI | J63: =E63 -> 6158095.763
B64: Securities other than shares - MFI | C64: 1548955.577 | D64: Dette émise | E64: 4848929.005 | G64: Securities other than shares - MFI | H64: =C64 -> 1548955.577 | I64: Debt security issued - MFI | J64: =SUM(H63:H65)-J63 -> 1585005.354
B65: Shares and other equities - MFI | C65: 475660.782 | G65: Shares and other equities - MFI | H65: =C65 -> 475660.782
B66: Total | C66: =SUM(C54:C65) -> 31774232.24 | D66: Total | E66: =SUM(E54:E65) -> 31774243.33 | G66: Remaining Assets and Cash of which euro | H66: =C62 -> 4241998.426 | I66: Remaining Liabilities | J66: =H66 -> 4241998.426
G67: Total | H67: =SUM(H54:H66) -> 31774232.24 | I67: Total | J67: =SUM(J54:J66) -> 31774243.33

Sheet Data
D4: T3-2012 | E4: T4-2012 | F4: T1-2013 | G4: T2-2013 | H4: T3-2013 | I4: T4-2013 | J4: T1-2014 | K4: T2-2014
B5: DSBL | C5: Ct | D5: 1846184.456 | E5: 1844338.27 | F5: 1835116.58 | G5: 1833281.46 | H5: 1820675.36 | I5: 1786409.09 | J5: 1724793.81 | K5: 1634125.03
C6: It | D6: 419084 | E6: 432084 | F6: 451639 | G6: 425992 | H6: 384600.61 | I6: 343672.53 | J6: 310974.67 | K6: 290683.4
C7: Qt | D7: 0.06 | E7: 0.06 | F7: 0.06 | G7: 0.06 | H7: 0.05845889818 | I7: 0.05540757659 | J7: 0.05100737616 | K7: 0.0455373731
C8: Kt | D8: 512048.6341 | E8: 535602.87 | F8: 562918.62 | G8: 613581.29 | H8: 666415.11 | I8: 720476.47 | J8: 775193.57 | K8: 830487.4
C9: Pit | D9: 0.0016 | E9: 0.003 | F9: 0.0031 | G9: 0.0032 | H9: 0.003301709217 | I9: 0.003406651172 | J9: 0.003514928616 | K9: 0.003626647565
C10: Wt | D10: 2452879.037 | E10: 2504389.5 | F10: 2554477.29 | G10: 2603012.35 | H10: 2601711.17 | I10: 2608745.29 | J10: 2604314.19 | K10: 2604314.19
C11: Lt | D11: -1997929.787 | E11: -2017909.08 | F11: -2056249.36 | G11: -2085036.85 | H11: -2273877.51 | I11: -2463015.79 | J11: -2667352.82 | K11: -2869926.81
C12: Yt | D12: 2346589.965 | E12: 2341896.79 | F12: 2330187.3 | G12: 2325526.93 | H12: 2264483.39 | I12: 2221642.19 | J12: 2145873.4 | K12: 2037343.29
C13: Rt | D13: 1.0296 | E13: 1.029 | F13: 1.0222 | G13: 1.0276 | H13: 1.031411796 | I13: 1.03363269 | J13: 1.034251696 | K13: 1.033263612
C15: i | D15: =D13-1 -> 0.0296 | E15: 0.029 | F15: 0.0222 | G15: 0.0276 | H15: 0.03141179569 | I15: 0.03363269025 | J15: 0.03425169602 | K15: 0.03326361187
D16: T3-2012 | E16: T4-2012 | F16: T1-2013 | G16: T2-2013 | H16: T3-2013 | I16: T4-2013 | J16: T1-2014 | K16: T2-2014
B17: Increase in Loans | D17: t-3 | E17: t-2 | F17: t-1 | G17: t | H17: t+1 | I17: t+2 | J17: t+3 | K17: t+4
B18: BalanceSheet | C18: Securities | D18: 0.3558900719 | E18: 0.3595608913 | F18: 0.362895695 | G18: 0.3615995737 | H18: 0.3514296647 | I18: 0.3260900501 | J18: 0.30087209 | K18: 0.2757757842
C19: Loans | D19: 0.5880420621 | E19: 0.5847095281 | F19: 0.581684958 | G19: 0.5828690595 | H19: 0.5921030552 | I19: 0.6151028862 | J19: 0.6379810629 | K19: 0.6607375852
C20: Liquidities | D20: 5.348356451e-07 | E20: -7.103359555e-08 | F20: -4.05244941e-06 | G20: -1.190343657e-05 | H20: -1.189164096e-05 | I20: -1.186215193e-05 | J20: -1.18326629e-05 | K20: -1.180317387e-05
C21: Obligatory Reserves | D21: 0.05606733122 | E21: 0.0557296516 | F21: 0.05542339943 | G21: 0.05554327022 | H21: 0.05647917181 | I21: 0.05881892579 | J21: 0.06115867978 | K21: 0.06349843376
B22: Rho | D22: 0.04033891425 | E22: 0.03953576862 | F22: 0.03049226068 | G22: 0.0376718087
G23: 0.0376718087 | H23: 0.04275398115 | I23: 0.04574486851 | J23: 0.04660635978 | K23: 0.04533154176
B25: Increase in Liquidities | D25: t-3 | E25: t-2 | F25: t-1 | G25: t | H25: t+1 | I25: t+2 | J25: t+3 | K25: t+4
B26: BalanceSheet | C26: Securities | D26: 0.3558900719 | E26: 0.3595608913 | F26: 0.362895695 | G26: 0.3615995737 | H26: 0.3517782564 | I26: 0.3272249632 | J26: 0.3026716699 | K26: 0.2781183766
C27: Loans | D27: 0.5880420621 | E27: 0.5847095281 | F27: 0.581684958 | G27: 0.5828690595 | H27: 0.5828690595 | I27: 0.5828690595 | J27: 0.5828690595 | K27: 0.5828690595
C28: Liquidities | D28: 5.348356451e-07 | E28: -7.103359555e-08 | F28: -4.05244941e-06 | G28: -1.190343657e-05 | H28: 0.009809413869 | I28: 0.03436270713 | J28: 0.0589160004 | K28: 0.08346929366
C29: Obligatory Reserves | D29: 0.05606733122 | E29: 0.0557296516 | F29: 0.05542339943 | G29: 0.05554327022 | H29: 0.05554327022 | I29: 0.05554327022 | J29: 0.05554327022 | K29: 0.05554327022
B30: Rho | D30: 0.04033891425 | E30: 0.03953576862 | F30: 0.03049226068 | G30: 0.0376718087
G31: 0.0376718087 | H31: 0.04273835136 | I31: 0.04569030838 | J31: 0.04651307524 | K31: 0.04519973871
B33: alpha | C33: beta | D33: gamma | E33: delta
B34: -785.2692224 | C34: 590.7945587 | D34: 635.5767251 | E34: -451.1424089
E37: Variations | G37: T2-2013 | H37: T3-2013 | I37: T4-2013 | J37: T1-2014 | K37: T2-2014
E38: DSBL | F38: Ct | G38: 0 | H38: =H5/G5-1 -> -0.006876249106 | I38: -0.01882063698 | J38: -0.03449113663 | K38: -0.05256789506
F39: It | G39: 0 | H39: -0.09716471201 | I39: -0.1064170959 | J39: -0.09514248928 | K39: -0.06525055562
F40: Qt | G40: 0 | H40: -0.02568503029 | I40: -0.05219601613 | J40: -0.07941513969 | K40: -0.1072394517
F41: Kt | G41: 0 | H41: 0.08610728662 | I41: 0.08112265042 | J41: 0.07594571409 | K41: 0.07132906172
F42: Pit | G42: 0 | H42: 0.03178413017 | I42: 0.03178413017 | J42: 0.03178413017 | K42: 0.03178413017
F43: Wt | G43: 0 | H43: -0.0004998746933 | I43: 0.002703651382 | J43: -0.001698556013 | K43: 0
F44: Lt | G44: 0 | H44: 0.09056945924 | I44: 0.08317874607 | J44: 0.0829621275 | K44: 0.07594570485
F45: Yt | G45: 0 | H45: -0.02624933696 | I45: -0.01891875215 | J45: -0.03410485736 | K45: -0.05057619429
F46: Rt | G46: 0 | H46: 0.003709415812 | I46: 0.002153256897 | J46: 0.0005988643491 | K46: -0.0009553614017
F47: rho 1 | G47: 0 | H47: =H23/G23-1 -> 0.1349065157 | I47: =I23/H23-1 -> 0.06995576268 | J47: 0.01883252261 | K47: -0.02735287687
F48: rho 2 | G48: 0 | H48: =H31/G31-1 -> 0.1344916221 | I48: =I31/H31-1 -> 0.06907044677 | J48: 0.01800746984 | K48: -0.02823585664

Sheet Parametres_DSBL
A1: Paramètres | B1: 2008 | C1: Q4 2012 | D1: Q1 2013 | E1: Q2 2013 | F1: 2012 | G1: Unité | H1: Source | K1: Variables | L1: Q4 2012 | M1: Q1 2013 | N1: Q2 2013 | O1: Q3 2013 | P1: Unité | Q1: Source
A2: Equation Lt: | K2: Ct | L2: 1844338.272 | M2: 1835116.581 | N2: 1833281.464 | O2: 1835114.746 | P2: M€ | Q2: OCDE
A3: 𝜳 | B3: =5.917 -> 5.917 | C3: =5.917 -> 5.917 | D3: =5.917 -> 5.917 | E3: =5.917 -> 5.917 | F3: =5.917 -> 5.917 | G3: % | H3: Hypothèse | K3: It | L3: 432084 | M3: 451639 | N3: 425992 | O3: 426780 | P3: M€ | Q3: OCDE
A4: rkt | C4: 0 | D4: 0 | E4: 0 | F4: =LN([1]Feuil5!G16/[1]Feuil5!F16) -> 0 | G4: % | H4: Hypothèse | K4: Qt | L4: 0.06 | M4: 0.06 | N4: 0.06 | O4: 0.06
A5: Equation Yt: | K5: Kt | L5: 535602.8713 | M5: 562918.6177 | N5: 613581.2933 | O5: 672485.0975 | P5: M€ | Q5: Banque Mondiale
A6: ky | C6: =L5/L9 -> 0.2287047297 | D6: =M5/L9 -> 0.2403686709 | E6: =N5/M9 -> 0.2633184435 | F6: 8.8 | G6: coef | H6: Doc Smet-wouters | K6: 𝝅t | L6: 0.003 | M6: 0.0031 | N6: 0.0032 | O6: 0.0031 | P6: % | Q6: EUROSTAT
A7: gy | C7: =1-(L2/L9)-(L3/L9) -> 0.02795789882 | D7: =1-(L2/L9)-(M3/L9) -> 0.01960782971 | E7: =1-(M2/M9)-(M3/M9) -> 0.01863872521 | F7: =1-0.6-0.22 -> 0.18 | G7: coef | H7: OCDE | K7: wt | L7: 2504389.496 | M7: 2554477.286 | N7: 2603012.355 | O7: 2657675.614 | P7: M€ | Q7: OCDE
A8: τ | C8: 0.025 | D8: 0.025 | E8: 0.025 | F8: 0.025 | G8: % | H8: Hypothèse | K8: Lt | L8: -2017909.084 | M8: -2056249.357 | N8: -2085036.848 | O8: -2116312.401 | P8: M€
A9: 𝜺gt | C9: 0 | D9: 0 | E9: 0 | F9: 0 | G9: M€ | K9: Yt | L9: 2341896.785 | M9: 2330187.301 | N9: 2325526.927 | O9: 2332503.508 | P9: M€ | Q9: OCDE
A10: Equation Rt: | K10: Rt | L10: 1.029 | M10: 1.0222 | N10: 1.0276 | O10: 1.0287 | P10: %
A11: ρ | C11: 0.995 | D11: =C11 -> 0.995 | E11: =C11 -> 0.995 | F11: 0.99 | G11: coef | H11: Doc Smet-wouters
A12: 𝝅bt | C12: 0.03 | D12: 0.033 | E12: 0.03 | F12: =[1]Feuil5!F6 -> 0.027 | G12: % | H12: Hypothèse
A13: r π | C13: 1.684 | D13: 1.684 | E13: 1.684 | F13: 1.684 | G13: coef | H13: Doc Smet-wouters
A14: ry | C14: 0.099 | D14: 0.099 | E14: 0.099 | F14: 0.099 | G14: coef | H14: Doc Smet-wouters
A15: rɅπ | B15: 0 | C15: 0 | D15: 0 | E15: 0 | F15: =[1]Feuil5!G27 -> -0.07407407407 | G15: % | H15: Doc Smet-wouters
A16: rɅY | B16: 0 | C16: 0 | D16: 0 | E16: 0 | F16: =[1]Feuil5!G28 -> 0.006342192734 | G16: % | H16: Doc Smet-wouters
A17: ra | C17: 1 | D17: 1 | E17: 1 | F17: 0 | H17: Hypothèse
A18: 𝜼at | C18: 0.001 | D18: =C18 -> 0.001 | E18: =C18 -> 0.001 | F18: 0 | H18: Hypothèse
A19: 𝜼Lt | C19: 0.001 | D19: 0.1 | E19: 0.1 | F19: 0 | H19: Hypothèse
A20: 𝜼Rt | C20: 0.001 | D20: 0.1 | E20: 0.1 | F20: 0 | H20: Hypothèse
A21: rL | C21: 1 | D21: 1 | E21: 1 | F21: 0 | H21: Hypothèse
F22: 2012 | G22: Unité | H22: Source
A23: Equation Ct:
A24: h | C24: 0.573 | D24: 0.573 | E24: 0.573 | F24: 0.573 | G24: coef | H24: Doc Smet-wouters
A25: 𝝈c | C25: 1.353 | D25: 1.353 | E25: 1.353 | F25: 1.353 | G25: coef | H25: Doc Smet-wouters | K25: -
A26: 𝜺b t | C26: 0 | D26: 0 | E26: 0 | F26: 0 | G26: M€ | H26: Hypothèse
A27: 𝜺b t+1 | C27: 0 | D27: 0 | E27: 0 | F27: 0 | G27: M€ | H27: Hypothèse
A28: Equation It:
A29: 𝜷 | C29: =0.99 -> 0.99 | D29: =0.99 -> 0.99 | E29: 0.99 | F29: 0.99 | G29: coef | H29: Doc Smet-wouters
A30: 𝝋 | C30: =1/6.771 -> 0.1476886723 | D30: =1/6.771 -> 0.1476886723 | E30: =1/6.771 -> 0.1476886723 | F30: =1/6.771 -> 0.1476886723 | G30: coef | H30: Doc Smet-wouters
A31: 𝜺i | C31: 0 | D31: 0 | E31: 0 | F31: 0 | G31: M€
A32: 𝜺i t+1 | C32: 0 | D32: 0 | E32: 0 | F32: 0 | G32: M€
A33: Equation Qt:
A34: rbk | C34: =(1/D29)-1+D37 -> 0.0351010101 | D34: =(1/D29)-1+D37 -> 0.0351010101 | E34: =(1/D29)-1+D37 -> 0.0351010101 | F34: =(1/E29)-1+E37 -> 0.0351010101 | G34: % | H34: Par le calcul
A35: rkt | C35: 0 | D35: 0 | E35: 0 | F35: 0 | G35: % | H35: Hypothèse
A36: 𝜼Qt | C36: 0 | D36: 0 | E36: 0 | F36: 0 | G36: M€
A37: τ | C37: 0.025 | D37: 0.025 | E37: 0.025 | F37: 0.025 | G37: % | H37: Doc Smet-wouters
A38: Equation Kt:
A39: τ | C39: 0.025 | D39: 0.025 | E39: 0.025 | F39: 0.025 | G39: % | H39: Doc Smet-wouters
A40: Equation 𝝅t:
A41: 𝜷 | C41: =0.99 -> 0.99 | D41: =0.99 -> 0.99 | E41: 0.99 | F41: 0.99 | G41: coef | H41: Doc Smet-wouters
A42: 𝜸p | C42: 0.469 | D42: 0.469 | E42: 0.469 | F42: 0.469 | G42: % | H42: Doc Smet-wouters
A43: 𝝃p | C43: 0.908 | D43: 0.908 | E43: 0.908 | F43: 0.908 | G43: coef | H43: Doc Smet-wouters
A44: 𝜶 | C44: 0.3 | D44: 0.3 | E44: 0.3 | F44: 0.3 | G44: coef | H44: Doc Smet-wouters
A45: 𝜺𝜶t | C45: 0 | D45: 0 | E45: 0 | F45: 0 | G45: M€
A46: 𝜼pt | C46: 0 | D46: 0 | E46: 0 | F46: 0 | G46: M€
A47: rkt | C47: 0 | D47: -0.1569873016 | E47: 0.06277301229 | F47: 0.06277301229 | G47: % | H47: Hypothèse
A48: Equation wt:
A49: 𝜷 | C49: =0.99 -> 0.99 | D49: =0.99 -> 0.99 | E49: 0.99 | F49: 0.99 | G49: coef | H49: Doc Smet-wouters
A50: 𝝈l | C50: 2.4 | D50: 2.4 | E50: 2.4 | F50: 2.4 | G50: % | H50: Doc Smet-wouters
A51: 𝝃w | C51: 0.75 | D51: 0.75 | E51: 0.75 | F51: 0.75 | G51: % | H51: Doc Smet-wouters
A52: λw | C52: 0.5 | D52: 0.5 | E52: 0.5 | F52: 0.5 | G52: coef | H52: Doc Smet-wouters
A53: 𝜸w | C53: 0.75 | D53: 0.75 | E53: 0.75 | F53: 0.75 | G53: % | H53: hypothèse
A54: 𝜺l t-1 | C54: 0 | D54: 0 | E54: 0 | F54: 0 | G54: coef
A55: h | C55: 0.573 | D55: 0.573 | E55: 0.573 | F55: 0.573 | G55: coef | H55: Doc Smet-wouters
A56: 𝜼wt-1 | C56: 0 | D56: 0 | E56: 0 | F56: 0 | G56: coef | H56: hypothèse S-W
A57: 𝝈c | C57: 1.353 | D57: 1.353 | E57: 1.353 | F57: 1.353 | G57: % | H57: Doc Smet-wouters
